[Event "Cattolica Chess Festival 2022"]
[Site "Cattolica"]
[Date "2022.06.09"]
[Round "6.7"]
[White "Korneev, Oleg"]
[Black "Padmini, Rout"]
[Result "1/2-1/2"]
[ECO "A48"]
[WhiteElo "2521"]
[BlackElo "2348"]
[Annotator "TA"]
[PlyCount "99"]
[EventDate "2022.06.04"]
[EventCountry "ITA"]
[SourceTitle "playchess.com"]
[Source "ChessBase"]
[SourceQuality "1"]
[TimeControl "5400+30"]

{[%evp 14,99,0,0,2,-27,25,10,15,16,12,15,21,10,30,19,34,45,74,40,45,28,35,46,102,60,58,54,34,33,70,62,49,39,40,29,33,28,35,31,25,43,102,103,98,70,79,87,79,81,81,83,83,89,98,85,85,43,76,48,105,47,43,40,37,36,97,108,226,223,267,238,238,106,106,114,122,118,202,191,207,0,0,0,188,0,0,0]} 1. Nf3 {[%emt 0:34:24]} Nf6 {[%emt 0:30:18]} 2. d4 {[%emt 0:00:05]} g6 {[%emt 0:00:39]} 3. Bf4 {[%emt 0:01:38]} Bg7 {[%emt 0:00:22]} 4. e3 {[%emt 0:00:02]} O-O {[%emt 0:01:00]} 5. Be2 {[%emt 0:00:04]} d6 {[%emt 0:00:57]} 6. h3 {[%emt 0:00:17]} c5 {[%emt 0:01:47] 6...Nc6 gains popularity.} 7. c3 {[%emt 0:00:31]} Qb6 {[%emt 0:01:50]} 8. Qb3 {[%emt 0:00:24]} Be6 {[%emt 0:02:12] A48: 1 d4 Nf6 2 Nf3 g6: Torre, London and Colle Systems.} 9. Qa3 {[%emt 0:00:29]} h6 {[%emt 0:06:13]} (9... cxd4 $142 10. exd4 Nc6) 10. O-O {[%emt 0:00:30]} Nbd7 {[%emt 0:03:17]} 11. Nbd2 {[%emt 0:01:05] [#]} g5 $146 {[%emt 0:02:39]} ({Predecessor:} 11... Rac8 12. Rfe1 g5 13. Bg3 Bf5 14. Bf1 d5 15. Ne5 e6 16. Qb3 Nxe5 17. Bxe5 c4 18. Qxb6 axb6 {0-1 (59) Zlobec,S (2062)-Drazic,S (2422) Sarajevo 2016}) 12. Bh2 {[%emt 0:02:13]} Bf5 {[%emt 0:00:30] Prevents e4.} 13. Rfd1 {[%emt 0:24:04]} a6 {[%emt 0:04:54]} 14. Qb3 {[%emt 0:02:23]} Qxb3 {[%emt 0:06:04]} 15. axb3 {[%emt 0:01:42]} Bg6 {[%emt 0:03:53]} 16. Ne1 {[%emt 0:02:34]} Rac8 {[%emt 0:03:06]} 17. Bd3 {[%emt 0:10:22]} Bxd3 {[%emt 0:06:35]} 18. Nxd3 {[%emt 0:00:03]} d5 {[%emt 0:00:12]} (18... Rfd8 $14) 19. dxc5 {[%emt 0:01:10]} Nxc5 {[%emt 0:00:26]} 20. Nxc5 {[%emt 0:00:04]} Rxc5 {[%emt 0:00:06]} 21. b4 {[%emt 0:00:03]} Rc6 {[%emt 0:01:04]} 22. Nb3 {[%emt 0:00:17]} Rfc8 {[%emt 0:01:34]} 23. Be5 {[%emt 0:03:48]} e6 {[%emt 0:01:15]} 24. Nc5 {[%emt 0:03:56]} a5 $1 {[%emt 0:05:20]} 25. Bxf6 {[%emt 0:01:33]} ({Don't blunder} 25. Rxa5 $2 b6 26. Ra6 (26. Bxf6 $2 Bxf6 27. Nd7 bxa5 $19) 26... bxc5 $19) 25... Bxf6 {[%emt 0:00:06]} 26. Nd7 {[%emt 0:03:33]} ({Not} 26. Rxa5 $2 b6 27. Nd7 bxa5 $19) 26... Bd8 {[%emt 0:00:17]} 27. bxa5 {[%emt 0:00:35]} Ra6 {[%emt 0:00:40]} ({Black should play} 27... Ra8 $14) 28. b4 $16 {[%emt 0:02:05][%cal Oe3e4]} Rxc3 {[%emt 0:01:22]} 29. e4 {[%emt 0:02:33]} Rc4 {[%emt 0:02:53]} 30. Nc5 $1 {[%emt 0:02:18]} Ra7 {[%emt 0:00:34]} 31. exd5 {[%emt 0:00:30]} Rxb4 {[%emt 0:00:42]} 32. dxe6 {[%emt 0:00:00]} Be7 {[%emt 0:00:00]} 33. exf7+ {[%emt 0:00:00]} Kxf7 {[%emt 0:00:00]} 34. Rd7 {[%emt 0:00:00] aiming for Re1.} Kf6 {[%emt 0:00:00]} 35. Nd3 {[%emt 0:00:00] White is more active.} Rb6 {[%emt 0:00:00]} 36. f4 $36 {[%emt 0:00:00][%mdl 2048] White is pushing.} (36. Ne5 $5) 36... Re6 {[%emt 0:00:00]} (36... gxf4 $14 37. Ra4 (37. Nxf4 Rd6 $16) 37... Rc6) 37. fxg5+ {[%emt 0:00:56]} ({Better is} 37. Rf1 $16 {Hoping for fxg5+.} Re4 38. Rd5) 37... hxg5 $14 {[%emt 0:00:00]} 38. Rf1+ {[%emt 0:00:05]} Kg6 {[%emt 0:00:00]} 39. Rd5 {[%emt 0:01:02] And now Rb1 would win.} Bf6 {[%emt 0:00:00]} (39... b6 $14) 40. Rb1 $1 $16 {[%emt 0:00:36]} Kg7 {[%emt 0:02:18]} (40... b6 $16) 41. Rbb5 $18 {[%emt 0:01:01]} Re7 {[%emt 0:04:06]} 42. Kf2 {[%emt 0:01:19]} Ra6 {[%emt 0:01:49]} 43. Ne1 {[%emt 0:01:10]} (43. Nc5 $18 Rc6 44. Kf3 (44. Nxb7 Rc2+ 45. Kf3 Rc3+ 46. Kg4 Kg6 $11)) 43... Rc6 $16 {[%emt 0:06:12]} 44. Nf3 {[%emt 0:00:05]} Rc2+ {[%emt 0:00:07] [#]} 45. Rd2 $1 {[%emt 0:00:15]} Rc4 {[%emt 0:04:25]} (45... Bd4+ $16 46. Kg3 Rxd2 47. Nxd2 Kg6) 46. Nxg5 {[%emt 0:00:29]} Bd4+ {[%emt 0:00:07]} 47. Kg3 {[%emt 0:01:09]} Be5+ {[%emt 0:00:37]} 48. Kf2 {[%emt 0:00:16]} Bd4+ {[%emt 0:02:02] [#]} 49. Kg3 $2 {[%emt 0:00:44]} ({White must play} 49. Kf3 $1 $18) 49... Be5+ $11 {[%emt 0:00:00]} 50. Kf2 {[%emt 0:00:29] Weighted Error Value: White=0.21 (precise) /Black=0.16 (very precise)} 1/2-1/2

[Event "Cattolica Chess Festival 2022"]
[Site "Cattolica"]
[Date "2022.06.09"]
[Round "6.8"]
[White "Lohvinov, Petro"]
[Black "Kjartansson, Gudmundur"]
[Result "0-1"]
[ECO "B80"]
[WhiteElo "2232"]
[BlackElo "2452"]
[Annotator "TA"]
[PlyCount "80"]
[EventDate "2022.06.04"]
[EventCountry "ITA"]
[SourceTitle "playchess.com"]
[Source "ChessBase"]
[SourceQuality "1"]
[TimeControl "5400+30"]

{[%evp 14,80,1,0,32,7,0,4,16,0,7,-12,-19,-22,23,-18,-18,-135,-54,-69,-5,-10,-16,-32,-31,-15,-24,-115,-79,-93,-87,-136,-140,-154,-150,-306,-211,-222,-187,-286,-295,-304,-229,-459,-462,-478,-479,-534,-465,-537,-550,-749,-738,-707,-609,-633,-613,-665,-669,-866,-858,-857,-860,-846,-839,-964,-962,-937,-915]} 1. e4 {[%emt 0:35:21]} c5 {[%emt 0:30:08]} 2. Nf3 {[%emt 0:00:05]} d6 {[%emt 0:00:05]} 3. d4 {[%emt 0:00:04]} cxd4 {[%emt 0:00:03]} 4. Nxd4 {[%emt 0:00:04]} Nf6 {[%emt 0:00:04]} 5. Nc3 {[%emt 0:00:06]} a6 {[%emt 0:00:02]} 6. Be3 {[%emt 0:00:07]} e6 {[%emt 0:00:42]} 7. f3 {[%emt 0:09:17]} b5 {[%emt 0:00:35]} 8. Qd2 {[%emt 0:00:24]} h5 {[%emt 0:08:23] B80: Sicilian Scheveningen: 6 g3 and 6 Be3, including English Attack.} 9. O-O-O {[%emt 0:08:18] 9.a4 deserves study.} Nbd7 {[%emt 0:01:05]} 10. a3 {[%emt 0:03:13]} Bb7 {[%emt 0:01:41] The position is equal.} 11. Nb3 {[%emt 0:05:38]} Rc8 {[%emt 0:12:49]} 12. Kb1 {[%emt 0:04:38]} Be7 {[%emt 0:03:48]} 13. Bf4 {[%emt 0:16:15] [#]} Ne5 $146 {[%emt 0:08:43]} (13... d5 $5 {[%cal Rd5e4]}) ({Predecessor:} 13... e5 14. Bg5 Bc6 15. h4 Qc7 16. g3 Rb8 17. Bxf6 Nxf6 18. Nd5 Bxd5 19. exd5 Bd8 {0-1 (98) Noshin,A (1902)-Anata,C (2119) Dhaka 2021}) 14. Qf2 {[%emt 0:08:35] Strongly threatening Bxe5.} (14. Bxe5 $5 dxe5 15. Qxd8+ Rxd8 16. Be2 $11) 14... Nfd7 {[%emt 0:08:43][%cal Oc8c3]} 15. Bd3 {[%emt 0:01:55] [#]} (15. Qd2 $11) 15... Bf6 {[%emt 0:09:00]} (15... Rxc3 $1 $17 {[%mdl 512]} 16. bxc3 Qc7) 16. Qa7 {[%emt 0:02:17]} Qb6 {[%emt 0:04:45]} (16... Qc7 $15) 17. Qxb6 $11 {[%emt 0:00:15]} Nxb6 {[%emt 0:00:06]} 18. Na5 {[%emt 0:00:21]} Ba8 {[%emt 0:00:49]} 19. Be3 {[%emt 0:01:58]} Ned7 {[%emt 0:02:17]} 20. Nxb5 {[%emt 0:01:01]} axb5 $17 {[%emt 0:00:32]} 21. Bxb5 {[%emt 0:00:01] Bxb6 is the strong threat.} Ke7 {[%emt 0:00:49]} 22. Rd2 {[%emt 0:00:52]} (22. c4 $142) 22... d5 {[%emt 0:02:48]} 23. Rhd1 {[%emt 0:00:10][%cal Oc2c4] [#]} Rhd8 $1 {[%emt 0:00:15]} 24. b4 $2 {[%emt 0:01:03] White does not recover from this.} (24. c4 $17) 24... Rc3 {[%emt 0:01:24]} 25. Rd3 {[%emt 0:00:31]} dxe4 {[%emt 0:01:13]} 26. Rxc3 {[%emt 0:00:21]} (26. Bxb6 $142 exd3 27. Bxd8+ Kxd8 28. Rxd3 Rxd3 29. Bxd3) 26... Bxc3 $19 {[%emt 0:00:12]} 27. fxe4 {[%emt 0:00:35]} Bxe4 {[%emt 0:00:18]} 28. Bd3 $2 {[%emt 0:00:33]} (28. Bc6 Nd5 29. Bxd5 Bxd5 30. Rxd5 exd5 31. Nc6+ Ke8 32. Nxd8 Kxd8 33. Ka2) 28... Bxg2 {[%emt 0:01:23] Black is clearly winning.} 29. Rg1 {[%emt 0:00:24]} Ba8 {[%emt 0:00:32]} 30. Bg5+ {[%emt 0:00:35]} Bf6 {[%emt 0:00:16]} 31. Be3 {[%emt 0:00:00]} Nd5 {[%emt 0:00:00]} 32. Bf2 {[%emt 0:00:00]} Nc3+ {[%emt 0:00:00]} 33. Kc1 {[%emt 0:00:00]} g5 {[%emt 0:00:00]} 34. Re1 {[%emt 0:00:00]} Ne5 {[%emt 0:00:00]} 35. Bc5+ {[%emt 0:00:00]} Ke8 {[%emt 0:00:00]} 36. Be2 {[%emt 0:00:00]} Nf3 {[%emt 0:00:00]} 37. Bxf3 {[%emt 0:00:00]} Bxf3 {[%emt 0:00:00]} 38. Nc4 {[%emt 0:00:00]} Ne2+ {[%emt 0:00:00]} 39. Kb1 {[%emt 0:00:00]} Bc3 {[%emt 0:00:00]} 40. Rf1 {[%emt 0:00:00]} Bg2 {[%emt 0:00:00] Weighted Error Value: White=0.54/Black=0.25 (precise)} 0-1

[Event "Cattolica Chess Festival 2022"]
[Site "Cattolica"]
[Date "2022.06.09"]
[Round "6.9"]
[White "Ceres, Dragos"]
[Black "Willow, Jonah B"]
[Result "0-1"]
[ECO "D05"]
[WhiteElo "2380"]
[BlackElo "2401"]
[Annotator "TA"]
[PlyCount "130"]
[EventDate "2022.06.04"]
[EventCountry "ITA"]
[SourceTitle "playchess.com"]
[Source "ChessBase"]
[SourceQuality "1"]
[TimeControl "5400+30"]

{[%evp 17,130,0,11,6,0,-3,0,-8,0,-2,0,-18,-18,-26,0,0,0,-19,-18,-47,0,-38,-29,-35,-27,-51,-16,-16,-25,-16,-28,-27,-16,-114,0,-67,-10,-47,-47,-48,-50,-161,-151,-158,-139,-164,-147,-139,-133,-125,-101,-108,-108,-108,-108,-109,-106,-111,-108,-111,-101,-101,-86,-86,-86,-86,-86,-124,-125,-127,-120,-124,-124,-181,-185,-200,-185,-189,-147,-193,-192,-169,-111,-189,-189,-187,0,-150,-150,-150,-150,-150,-147,-136,-116,-651,-503,-514,-452,-255,-196,-177,-185,-144,-7,-108,0,-12838,-12839,-12839,-12839,-12840,-12840,-12846,-12842]} 1. d4 {[%emt 0:30:02]} d5 {[%emt 0:35:35]} 2. Nf3 {[%emt 0:00:49]} Nf6 {[%emt 0:00:07]} 3. e3 {[%emt 0:00:24]} e6 {[%emt 0:00:42]} 4. Bd3 {[%emt 0:00:36]} Be7 {[%emt 0:01:02]} 5. O-O {[%emt 0:00:39]} O-O {[%emt 0:00:04]} 6. b3 {[%emt 0:00:08]} b6 {[%emt 0:00:50]} 7. Bb2 {[%emt 0:01:11]} Bb7 {[%emt 0:00:42]} 8. Nbd2 {[%emt 0:04:41]} c5 {[%emt 0:00:25]} 9. Ne5 {[%emt 0:01:32]} Nc6 {[%emt 0:05:52]} 10. Nxc6 {[%emt 0:01:00] D05: Colle System with ...e6.} Bxc6 {[%emt 0:00:02]} 11. f4 {[%emt 0:01:33] [#]} Ne4 $146 {[%emt 0:06:04]} ({Predecessor:} 11... b5 12. c4 bxc4 13. bxc4 Qd7 14. Nb3 dxc4 15. Bxc4 cxd4 16. Nxd4 Bd5 17. Bxd5 Qxd5 {½-½ (31) Adoamnei,R (2000)-Moldovan,P (1741) Baile Olanesti 2010}) 12. Nf3 {[%emt 0:07:50] The position is equal.} Bb7 {[%emt 0:02:02]} 13. c4 {[%emt 0:07:59]} Rc8 {[%emt 0:11:50]} 14. Rc1 {[%emt 0:01:24]} dxc4 {[%emt 0:05:53]} 15. bxc4 {[%emt 0:00:53]} cxd4 {[%emt 0:00:24]} 16. exd4 {[%emt 0:00:17]} f5 {[%emt 0:02:45]} 17. Ne5 {[%emt 0:01:41]} Bd6 {[%emt 0:04:31]} 18. Rf3 {[%emt 0:08:19]} Rf6 {[%emt 0:09:09]} (18... Qh4 $15 {is more appropriate.}) 19. Bxe4 {[%emt 0:06:27]} Bxe4 {[%emt 0:00:06]} 20. Rg3 {[%emt 0:00:33]} Rh6 {[%emt 0:03:59]} 21. Qd2 {[%emt 0:04:41]} Rc7 {[%emt 0:03:22]} ({Much worse is} 21... Qh4 22. Rh3 Qf6 23. c5 Bxe5 24. dxe5 $11) 22. Ba3 {[%emt 0:02:35]} Bxe5 {[%emt 0:01:54]} 23. fxe5 {[%emt 0:00:06]} Rh4 {[%emt 0:00:31] Strongly threatening ...f4.} 24. Bd6 {[%emt 0:01:13]} Rc8 {[%emt 0:01:36] White must now prevent ...f4.} 25. Qe2 {[%emt 0:07:36] [#]} (25. h3 $11 {remains equal.}) 25... f4 {[%emt 0:01:16]} (25... Rxh2 $1 $17 {[%mdl 512] And now ...Qh4 would win.} 26. Kxh2 Qh4+ 27. Rh3 Qf4+ 28. Rg3 Qxc1) 26. Rg4 {[%emt 0:00:54] Against Qh4} (26. Rxg7+ $1 $11 Kxg7 27. Qxe4) 26... Bd3 {[%emt 0:01:26]} 27. Qf3 {[%emt 0:02:44] Threatens to win with Rxh4.} (27. Rxg7+ $5 Kxg7 28. Qxd3 $11) 27... Rxc4 {[%emt 0:00:28] Really sharp!} (27... Bxc4 {is more complex.} 28. Rxf4 Rxf4 29. Qxf4 Bd5) 28. Rxc4 {[%emt 0:00:27]} Bxc4 {[%emt 0:00:03][%cal Bd3c4,Bc4a2,Ba2d5][%mdl 32]} 29. Rxh4 {[%emt 0:03:14]} ({Reject} 29. Rxf4 Rxf4 30. Qxf4 Bxa2 $17) (29. a3 $1 $15) 29... Qxh4 $15 {[%emt 0:00:01][%mdl 4096] Endgame KQB-KQB} 30. g3 {[%emt 0:01:57]} Qd8 {[%emt 0:00:36] Prevents Qa8.} 31. gxf4 {[%emt 0:01:15]} Bxa2 {[%emt 0:00:00]} 32. Qa3 {[%emt 0:00:00]} Bd5 {[%emt 0:00:00]} 33. Qxa7 {[%emt 0:00:00]} Qh4 {[%emt 0:00:00][%cal Rh4e1]} 34. Qb8+ {[%emt 0:00:00]} Kf7 {[%emt 0:00:00][%cal Rh4e1]} 35. Qc7+ {[%emt 0:00:00]} Kg6 {[%emt 0:00:00][%cal Rh4e1]} 36. Qc2+ {[%emt 0:00:00]} Kh6 {[%emt 0:00:00][%cal Rh4e1]} 37. Qf2 {[%emt 0:00:00] Inhibits Qe1+.} Qg4+ {[%emt 0:00:00]} 38. Qg3 {[%emt 0:00:00]} Qd1+ {[%emt 0:00:00]} 39. Kf2 {[%emt 0:00:00][%csl Gf4][%cal Rg3g5]} Qd2+ {[%emt 0:00:00]} 40. Kg1 {[%emt 0:00:00][%csl Gf4][%cal Rg3g5]} Qxd4+ {[%emt 0:00:00]} 41. Kf1 {[%emt 0:00:00][%csl Gf4][%cal Rg3g5]} Bc4+ {[%emt 0:00:00]} 42. Kg2 {[%emt 0:00:00][%csl Gf4][%cal Rg3g5]} Qe4+ {[%emt 0:00:00]} 43. Kh3 {[%emt 0:00:00][%csl Gf4][%cal Rg3g5]} Qf5+ {[%emt 0:00:43]} 44. Kg2 {[%emt 0:00:00]} Kh5 {[%emt 0:02:47] ...Qc2+ is the strong threat.} 45. h3 {[%emt 0:00:00]} (45. Qh3+ $17 Kg6 46. Qxf5+ Kxf5 47. Kg3) 45... Bd5+ $19 {[%emt 0:02:57]} 46. Kg1 {[%emt 0:00:00]} Qb1+ {[%emt 0:00:19]} 47. Kf2 {[%emt 0:00:00][%csl Gf4][%cal Rg3g5]} Qc2+ {[%emt 0:00:18]} 48. Kg1 {[%emt 0:00:00]} (48. Kf1 $17 Qd1+ 49. Kf2) 48... Qd1+ {[%emt 0:00:15]} 49. Kf2 {[%emt 0:00:00][%csl Gf4][%cal Rg3g5]} Qd4+ {[%emt 0:00:20]} ({Better is} 49... h6 $19 50. Be7 Qd2+ 51. Kf1 g5 52. fxg5 hxg5 53. Qg4+ Kg6) 50. Ke1 {[%emt 0:00:00]} (50. Kf1 $17 Qd1+ 51. Kf2) 50... Qe4+ {[%emt 0:00:25]} 51. Kf2 {[%emt 0:00:00][%csl Gf4][%cal Rg3g5]} Qc2+ {[%emt 0:00:44]} 52. Kg1 $1 {[%emt 0:00:00][%csl Gf4][%cal Rg3g5]} Qg6 {[%emt 0:00:18] Against Qg5+} 53. Kf2 {[%emt 0:00:15]} b5 {[%emt 0:00:51]} 54. Qxg6+ {[%emt 0:03:14]} Kxg6 $17 {[%emt 0:00:09] KB-KB} 55. Bf8 {[%emt 0:01:36]} Kf5 {[%emt 0:00:15]} 56. Ke3 {[%emt 0:01:13][%mdl 8192]} (56. Bxg7 $17 Kxf4 57. h4) 56... Bg2 $1 $19 {[%emt 0:01:39]} 57. h4 {[%emt 0:00:43]} Kg4 $1 {[%emt 0:00:23]} 58. Bxg7 {[%emt 0:01:10]} (58. Be7 $142 Bd5 59. Kd4) 58... Kxh4 {[%emt 0:00:05]} 59. f5 {[%emt 0:00:04]} exf5 {[%emt 0:01:08]} 60. Kf4 {[%emt 0:00:06] [#]} h5 {[%emt 0:00:54]} ({Black should play} 60... Be4 $1 $17 {Hoping for ...Kh3.} 61. e6 Kh5) 61. e6 {[%emt 0:02:11] [#]} (61. Bf6+ $11 {keeps the balance.} Kh3 62. Kxf5) 61... Bc6 {[%emt 0:00:15]} (61... Be4 $1 $17) 62. Ke5 $2 {[%emt 0:01:13][%mdl 8192]} (62. Bc3 $11) 62... Kg5 {[%emt 0:01:19] Black is clearly winning.} 63. Bf6+ {[%emt 0:00:40]} Kg4 {[%emt 0:00:37]} 64. Kd6 {[%emt 0:02:29]} Be8 {[%emt 0:00:00]} 65. Bh4 {[%emt 0:02:06]} b4 {[%emt 0:00:45] Weighted Error Value: White=0.47/Black=0.20 (precise)} 0-1

[Event "Cattolica Chess Festival 2022"]
[Site "Cattolica"]
[Date "2022.06.09"]
[Round "6.10"]
[White "Kanyamarala, Tarun"]
[Black "Souhardo Basak"]
[Result "0-1"]
[ECO "D37"]
[WhiteElo "2388"]
[BlackElo "2357"]
[Annotator "TA"]
[PlyCount "112"]
[EventDate "2022.06.04"]
[EventCountry "ITA"]
[SourceTitle "playchess.com"]
[Source "ChessBase"]
[SourceQuality "1"]
[TimeControl "5400+30"]

{[%evp 13,112,14,20,16,14,13,14,14,14,14,13,16,10,13,10,15,11,14,16,0,0,0,1,0,9,11,13,9,15,16,50,37,33,34,34,0,0,0,56,55,61,56,64,64,56,49,208,0,49,0,178,45,43,15,45,0,0,0,0,0,0,0,0,-5637,-5273,-3256,-1432,-29937,-12839,-29943,-29940,-12851,-5609,-12821,-12681,-6313,-4575,-29964,-29966,-29965,-1570,-29968,-29969,-29969,-29970,-29971,-29972,-29972,-29973,-29977,-29977,-29978,-29979,-29979,-29980,-29980,-29981,-29981,-29982,-29982,-29983]} 1. d4 {[%emt 0:30:04]} Nf6 {[%emt 0:30:17]} 2. c4 {[%emt 0:00:09]} e6 {[%emt 0:00:04]} 3. Nc3 {[%emt 0:00:08]} d5 {[%emt 0:00:04]} 4. Nf3 {[%emt 0:00:13]} Be7 {[%emt 0:00:06]} 5. Bf4 {[%emt 0:00:14]} O-O {[%emt 0:00:08]} 6. e3 {[%emt 0:00:11]} Nbd7 {[%emt 0:00:10]} 7. c5 {[%emt 0:00:23]} Nh5 {[%emt 0:00:17]} 8. Bd3 {[%emt 0:00:22] D37: Queen's Gambit Declined: 5 Bf4.} Nxf4 {[%emt 0:00:12]} 9. exf4 {[%emt 0:00:09]} b6 {[%emt 0:00:06]} 10. b4 {[%emt 0:00:23] The position is equal.} a5 {[%emt 0:01:58]} 11. a3 {[%emt 0:00:14]} c6 {[%emt 0:00:16]} 12. O-O {[%emt 0:00:13]} Qc7 {[%emt 0:00:06]} 13. g3 {[%emt 0:00:32]} Ba6 {[%emt 0:00:12]} 14. Bxa6 {[%emt 0:00:41]} Rxa6 {[%emt 0:00:02]} 15. Qe2 {[%emt 0:00:24]} Ra7 {[%emt 0:00:28] [#]} 16. Ra2 $146 {[%emt 0:11:27]} ({Predecessor:} 16. f5 axb4 17. axb4 Rxa1 18. Rxa1 e5 19. Nxe5 Nxe5 20. dxe5 bxc5 21. b5 d4 22. b6 Qxb6 {1-0 (33) Praggnanandhaa,R (2608)-Radjabov,T (2765) chess24.com INT 2021}) 16... Rfa8 {[%emt 0:01:27]} 17. Rfa1 {[%emt 0:01:48]} Bf6 {[%emt 0:12:58]} 18. Ne5 {[%emt 0:08:30]} Bxe5 {[%emt 0:14:36]} 19. fxe5 {[%emt 0:00:17]} Qb7 {[%emt 0:02:31]} 20. Kg2 {[%emt 0:12:47]} axb4 {[%emt 0:13:45]} 21. axb4 {[%emt 0:00:13]} b5 {[%emt 0:01:20]} (21... Rxa2 {with more complications.} 22. Rxa2 bxc5 23. Rxa8+ Qxa8 24. bxc5 Qa3) 22. Rxa7 {[%emt 0:06:35]} (22. h4 {is interesting.} Rxa2 23. Rxa2 Ra6 24. h5) 22... Rxa7 {[%emt 0:00:02]} 23. Rxa7 {[%emt 0:01:40]} Qxa7 {[%emt 0:00:01]} 24. Nxb5 {[%emt 0:06:11]} cxb5 {[%emt 0:07:36]} 25. Qxb5 {[%emt 0:00:11]} Qc7 {[%emt 0:01:11]} (25... g6 $11) 26. Qa6 $14 {[%emt 0:02:36][%mdl 1024] Hoping for b5. White has compensation.} Kf8 {[%emt 0:03:15]} 27. b5 {[%emt 0:08:59]} Ke7 {[%emt 0:03:57]} 28. Qa3 {[%emt 0:02:41] [#] Threatens to win with c6+.} Ke8 {[%emt 0:01:34]} 29. Qa8+ {[%emt 0:01:19]} Ke7 $2 {[%emt 0:02:24]} ({Black should try} 29... Qb8 $14 30. Qa5 (30. Qxb8+ Nxb8 31. g4 Kd8 $11) 30... Ke7) 30. Qa3 $2 {[%emt 0:02:34]} (30. c6 $18 Nb6 31. Qg8) 30... Ke8 {[%emt 0:01:34]} 31. Qa8+ {[%emt 0:00:00]} (31. Qa4 $14) 31... Ke7 $18 {[%emt 0:00:00]} 32. f4 {[%emt 0:00:00]} (32. c6 $18 Nb6 33. Qg8) 32... Qb8 {[%emt 0:00:00]} 33. Qa5 {[%emt 0:00:00]} h6 {[%emt 0:00:00]} 34. Kf2 {[%emt 0:00:00]} g5 {[%emt 0:00:00]} 35. fxg5 {[%emt 0:03:36]} hxg5 {[%emt 0:00:00]} 36. c6 {[%emt 0:01:56]} Nb6 {[%emt 0:00:00]} 37. Qa6 {[%emt 0:00:35]} f5 {[%emt 0:00:00]} 38. Qb7+ $2 {[%emt 0:00:42][%mdl 8192] White is on the road to losing.} (38. h4 $11) 38... Qxb7 $19 {[%emt 0:00:00]} 39. cxb7 {[%emt 0:00:04][%mdl 4096] Endgame KN-KP} Nd7 {[%emt 0:00:00]} 40. h3 {[%emt 0:00:56]} Kd8 {[%emt 0:00:00]} 41. b6 {[%emt 0:00:25]} Nb8 {[%emt 0:01:22]} 42. Kf3 {[%emt 0:00:23]} Ke7 {[%emt 0:00:18]} 43. Ke3 {[%emt 0:00:23]} Kf7 {[%emt 0:00:07]} 44. Kf3 {[%emt 0:00:43]} Kg6 {[%emt 0:00:02] [#] ( -> ...Kh5)} 45. Ke3 {[%emt 0:00:34]} Kh5 {[%emt 0:00:04]} 46. Kf3 {[%emt 0:00:26]} Na6 {[%emt 0:03:04]} (46... Nc6 $142 47. Ke3 f4+ 48. gxf4 gxf4+ 49. Kf3 Kg5 50. Kg2 Kh4 51. Kf3 Nxd4+ 52. Kg2 Nc6 53. Kf3 Kxh3 54. Kxf4 Kh4 55. Kf3 Kg5 56. Kf2 Kf4 57. Ke2 Nb8 58. Kd2 d4 59. Kc2 Kxe5 60. Kd3 Kd5 61. Kc2 e5 62. Kd3 e4+ 63. Ke2 d3+ 64. Ke3 Ke5 65. Kf2 Kd4 66. Kf1 e3 67. Ke1 Kc3 68. Kd1 e2+ 69. Ke1 Kc2 70. Kf2 d2 71. Kxe2 d1=Q+ 72. Kf2 Qg4 73. Ke3 Kc3 74. Kf2 Kd2 75. Kf1 Ke3 76. Ke1 Qg1#) 47. Ke3 {[%emt 0:00:19]} f4+ {[%emt 0:00:31] Black mates.} 48. gxf4 {[%emt 0:00:17]} gxf4+ {[%emt 0:00:28]} 49. Kxf4 {[%emt 0:00:28]} Kh4 {[%emt 0:00:03]} 50. Ke3 {[%emt 0:01:02]} Kxh3 {[%emt 0:00:02]} 51. Kd3 {[%emt 0:00:23]} Kg3 {[%emt 0:00:09]} 52. Kc3 {[%emt 0:00:31]} Kf4 {[%emt 0:00:02]} 53. b8=Q {[%emt 0:00:18]} Nxb8 {[%emt 0:00:02]} 54. Kb4 {[%emt 0:00:32]} Ke4 {[%emt 0:00:01]} 55. b7 {[%emt 0:00:30]} Kxd4 {[%emt 0:00:06]} 56. Kb5 {[%emt 0:00:17]} Kxe5 {[%emt 0:00:03] Weighted Error Value: White=0.76/Black=0.36} 0-1